fUSD/lending_fUSD_20260218
["ID","MTS","AMOUNT","RATE_DAILY","PERIOD"]
[405900268,1771411850869,-1000.0,0.00017801,2]
[405900269,1771411850878,-881.33749812,0.00017805,2]
[405900270,1771411850887,-3207.6,0.00017808,2]
[405900271,1771411850897,-894.24,0.00017808,2]
[405900272,1771411850906,-500.0,0.00017808,2]
[405900273,1771411850915,-785.85516216,0.00017808,2]
[405900274,1771411850924,-785.85516216,0.00017808,2]
[405900275,1771411850933,-785.85516216,0.00017808,2]
[405900276,1771411850943,-785.85516216,0.00017808,2]
[405900277,1771411850951,-785.85516216,0.00017808,2]
[405900278,1771411850960,-785.85516216,0.00017808,2]
[405900279,1771411850969,-785.85516216,0.00017808,2]
[405900280,1771411850978,-785.85516216,0.00017808,2]
[405900281,1771411850990,-785.85516216,0.00017808,2]
[405900282,1771411850999,-785.85516216,0.00017808,2]
[405900283,1771411851008,-785.85516216,0.00017808,2]
[405900284,1771411851017,-785.85516216,0.00017808,2]
[405900285,1771411851026,-785.85516216,0.00017808,2]
[405900286,1771411851036,-785.85516216,0.00017808,2]
[405900287,1771411851046,-785.85516216,0.00017808,2]
[405900288,1771411851055,-785.85516216,0.00017808,2]
[405900289,1771411851065,-785.85516216,0.00017808,2]
[405900290,1771411851074,-785.85516216,0.00017808,2]
[405900291,1771411851083,-785.85516216,0.00017808,2]
[405900292,1771411851092,-785.85516216,0.00017808,2]
[405900293,1771411851103,-785.85516216,0.00017808,2]
[405900294,1771411851112,-785.85516216,0.00017808,2]
[405900295,1771411851121,-785.85516216,0.00017808,2]
[405900296,1771411851131,-785.85516216,0.00017808,2]
[405900297,1771411851140,-785.85516216,0.00017808,2]
[405900298,1771411851149,-785.85516216,0.00017808,2]
[405900299,1771411851158,-785.85516216,0.00017808,2]
[405900300,1771411851168,-785.85516216,0.00017808,2]
[405900301,1771411851177,-785.85516216,0.00017808,2]
[405900302,1771411851187,-785.85516216,0.00017808,2]
[405900303,1771411851196,-785.85516216,0.00017808,2]
[405900304,1771411851206,-785.85516216,0.00017808,2]
[405900305,1771411851216,-841.0,0.00017808,2]
[405900306,1771411851225,-1000.0,0.00017808,2]
[405900307,1771411851234,-800.0,0.00017808,2]
[405900308,1771411851243,-250.0,0.00017808,20]
[405900309,1771411851252,-250.0,0.00017808,20]
[405900310,1771411851261,-250.0,0.00017808,20]
[405900311,1771411851271,-250.0,0.00017808,20]
[405900312,1771411851280,-250.0,0.00017808,20]
[405900313,1771411851289,-250.0,0.00017808,20]
[405900314,1771411851299,-250.0,0.00017808,20]
[405900315,1771411851308,-175.581631,0.00017808,20]
[405900316,1771411851318,-1000.0,0.00017813,2]
[405900317,1771411851327,-1000.0,0.00017814,2]
[405900318,1771411851336,-1000.0,0.00017817,2]
[405900319,1771411851345,-1000.0,0.00017819,2]
[405900320,1771411851355,-2000.0,0.0001782,2]
[405900321,1771411851364,-2000.0,0.0001782,2]
[405900322,1771411851373,-1000.0,0.00017824,2]
[405900323,1771411851383,-1000.0,0.00017826,2]
[405900324,1771411851392,-1000.0,0.00017836,2]
[405900325,1771411851401,-1000.0,0.00017838,2]
[405900326,1771411851410,-500.0,0.00017855,2]
[405900327,1771411851419,-200.0,0.00017855,2]
[405900328,1771411851429,-500.0,0.00017856,2]
[405900329,1771411851438,-200.0,0.00017856,2]
[405900330,1771411851447,-500.0,0.00017856,2]
[405900331,1771411851456,-500.0,0.00017856,2]
[405900332,1771411851469,-200.0,0.00017856,2]
[405900333,1771411851478,-200.0,0.00017856,2]
[405900334,1771411851488,-1000.0,0.00017862,2]
[405900335,1771411851497,-500.0,0.00017863,2]
[405900336,1771411851510,-155.72008061,0.00017863,2]
[405900337,1771411851519,-1427.43407233,0.00017863,2]
[405900338,1771411851528,-1000.0,0.00017869,2]
[405900339,1771411851539,-1000.0,0.0001788,2]
[405900340,1771411851549,-996.49958588,0.00017881,2]
[405900341,1771411851560,-1000.0,0.00017882,2]
[405900342,1771411851569,-150.0,0.00017893,2]
[405900343,1771411851580,-1000.0,0.00017897,2]
[405900344,1771411851589,-1000.0,0.00017898,2]
[405900345,1771411851598,-666.0,0.00017899,2]
[405900346,1771411851608,-300.0,0.00017899,2]
[405900347,1771411851617,-951.9112,0.000179,2]
[405900348,1771411851626,-4588.3903,0.000179,2]
[405900349,1771411851636,-25000.0,0.000179,3]
[405900350,1771411851646,-173.62051493,0.000179,3]
[405900351,1771411851656,-2119.69,0.000179,2]
[405900352,1771411851666,-5008.1800114,0.000179,3]
[405900353,1771411851675,-2251.56583335,0.000179,2]
[405900354,1771411851686,-210.82916584,0.000179,2]
[405900355,1771411851697,-1349.25174866,0.000179,2]
[405900356,1771411851707,-1000.0,0.00017904,2]
[405900357,1771411851717,-300.0,0.0001791,2]
[405900358,1771411851726,-1000.0,0.0001791,2]
[405900359,1771411851735,-300.0,0.00017911,2]
[405900360,1771411851744,-1338.0,0.00017912,2]
[405900361,1771411851754,-617.0,0.00017912,2]
[405900362,1771411851763,-3492.0,0.00017912,2]
[405900363,1771411851772,-150.0,0.00017912,2]
[405900364,1771411851782,-1275.0,0.00017912,2]
[405900365,1771411851791,-412.0,0.00017912,2]
[405900366,1771411851800,-919.0,0.00017912,2]
[405900367,1771411851809,-1000.0,0.00017914,2]
[405900368,1771411851818,-500.0,0.00017918,2]
[405900369,1771411851828,-575.0,0.00017939,3]
[405900370,1771411851838,-1000.0,0.00017946,2]
[405900371,1771411851847,-150.0,0.00017947,2]
[405900372,1771411851856,-159.0,0.00017948,2]
[405900373,1771411851865,-1000.0,0.00017949,2]
[405900374,1771411851874,-1000.0,0.00017951,2]
[405900375,1771411851884,-150.0,0.00017953,2]
[405900376,1771411851894,-220.89,0.00017955,2]
[405900377,1771411851903,-1000.0,0.00017959,2]
[405900378,1771411851913,-350.0,0.00017966,2]
[405900379,1771411851922,-300.0,0.00017969,2]
[405900380,1771411851931,-1000.0,0.0001797,2]
[405900381,1771411851940,-500.0,0.0001797,2]
[405900382,1771411851949,-1000.0,0.0001797,2]
[405900383,1771411851958,-500.0,0.0001797,2]
[405900384,1771411851967,-1000.0,0.0001797,2]
[405900385,1771411851976,-500.0,0.0001797,2]
[405900386,1771411851985,-1000.0,0.0001797,2]
[405900387,1771411851995,-500.0,0.0001797,2]
[405900388,1771411852004,-1000.0,0.0001797,2]
[405900389,1771411852014,-500.0,0.0001797,2]
[405900390,1771411852023,-1000.0,0.0001797,2]
[405900391,1771411852033,-500.0,0.0001797,2]
[405900392,1771411852042,-1000.0,0.0001797,2]
[405900393,1771411852051,-900.0,0.0001797,2]
[405900394,1771411852061,-1602.42010233,0.0001797,2]
[405900395,1771411852070,-500.0,0.00017972,2]
[405900396,1771411852080,-181.0,0.00017973,2]
[405900397,1771411852089,-324.11452571,0.00017973,2]
[405900398,1771411852099,-1000.0,0.00017976,2]
[405900399,1771411852108,-1000.0,0.00017977,2]
[405900400,1771411852118,-259.29571939,0.0001799,2]
[405900401,1771411852127,-300.0,0.00017998,2]
[405900402,1771411852136,-150.0,0.00017999,2]
[405900403,1771411852145,-300.0,0.00017999,2]
[405900404,1771411852155,-1000.0,0.00017999,2]
[405900405,1771411852164,-300.0,0.00017999,2]
[405900406,1771411852173,-300.0,0.00017999,2]
[405900407,1771411852183,-300.0,0.00017999,2]
[405900408,1771411852192,-666.0,0.00017999,2]
[405900409,1771411852202,-1406.97,0.00017999,2]
[405900410,1771411852212,-1406.97,0.00017999,2]
[405900411,1771411852222,-1406.97,0.00017999,2]
[405900412,1771411852231,-1406.97,0.00017999,2]
[405900413,1771411852241,-1406.97,0.00017999,2]
[405900414,1771411852250,-1406.97,0.00017999,2]
[405900415,1771411852259,-1406.97,0.00017999,2]
[405900416,1771411852268,-1407.13483398,0.00017999,2]
[405900417,1771411852277,-300.0,0.00017999,2]
[405900418,1771411852287,-150.0,0.00017999,2]
[405900419,1771411852296,-150.0,0.00017999,2]
[405900420,1771411852308,-176.3278099,0.00017999,2]
[405900421,1771411852317,-280273.43304185,0.00018,2]
[405900422,1771411853504,-5973.0,0.00011912,2]
[405900423,1771411853515,-5973.0,0.00014912,2]
[405900424,1771411853525,-1106526.88774933,0.00018,2]
[405900425,1771411853537,-2716645.47762215,0.00018,2]
[405900426,1771411853546,-2228335.46764833,0.00018,2]
[405900427,1771411853569,-851.95699677,0.00018,2]
[405900428,1771411854022,-5531.0,0.000116,5]
[405900429,1771411854033,-1266.17,0.00013698,2]
[405900430,1771411854042,-1266.17,0.00013698,2]
[405900431,1771411854052,-1266.17,0.00013698,2]
[405900432,1771411854061,-1266.17,0.00013698,2]
[405900433,1771411854071,-1266.17,0.00013698,2]
[405900434,1771411854081,-1266.17,0.00013698,2]
[405900435,1771411854091,-1266.17,0.00013698,2]
[405900436,1771411854100,-1265.63575209,0.000179,2]
[405900437,1771411854111,-83.61599638,0.000179,2]
[405900438,1771411854121,-262.91771233,0.000179,2]
[405900439,1771411854131,-55.06629129,0.00017912,2]
[405900440,1771411854183,-1266.17,0.00013698,2]
[405900441,1771411854192,-4513.53189096,0.00017912,2]
[405900442,1771411854222,-1266.17,0.00013698,2]
[405900443,1771411854232,-1000.0,0.0001786,2]
[405900444,1771411854241,-1404.40181775,0.00017912,2]
[405900445,1771411854250,-4243.55842192,0.00018,2]
[405900446,1771411854565,-2622.50734433,9.65e-05,2]
[405900447,1771411854579,-250.7875,9.65e-05,2]
[405900448,1771411854601,-20357.99999998,9.65e-05,2]
[405900450,1771412437754,1196.34209318,0.00017147,30]
[405900456,1771413031492,-500.0,7.276e-05,2]
[405900457,1771413031502,-250.0,7.64e-05,2]
[405900458,1771413031512,-250.0,8.003e-05,2]
[405900459,1771413031522,-1200.0,8.177e-05,2]
[405900460,1771413031531,-300.0,8.177e-05,2]
[405900461,1771413031540,-5047.9384,8.178e-05,2]
[405900462,1771413031555,-4568.464567,8.178e-05,2]
[405900463,1771413031565,-307.98,8.219e-05,2]
[405900464,1771413031575,-1000.0,8.219e-05,2]
[405900465,1771413031584,-150.0,8.53e-05,2]
[405900466,1771413031594,-348.45302762,8.531e-05,2]
[405900467,1771413031603,-500.0,8.531e-05,2]
[405900468,1771413031613,-415.01424059,8.531e-05,2]
[405900469,1771413031625,-84.98575941,8.531e-05,2]
[405900470,1771413031635,-500.0,8.531e-05,2]
[405900471,1771413031644,-500.0,8.531e-05,2]
[405900472,1771413031653,-500.0,8.531e-05,2]
[405900473,1771413031663,-500.0,8.531e-05,2]
[405900475,1771413031672,-500.0,8.531e-05,2]
[405900477,1771413031681,-500.0,8.531e-05,2]
[405900479,1771413031691,-500.0,8.531e-05,2]
[405900481,1771413031700,-500.0,8.531e-05,2]
[405900483,1771413031709,-500.0,8.531e-05,2]
[405900485,1771413031719,-500.0,8.531e-05,2]
[405900487,1771413031727,-500.0,8.531e-05,2]
[405900488,1771413031736,-358.9081566,8.531e-05,2]
[405900490,1771413031745,-500.0,8.531e-05,2]
[405900493,1771413031754,-470.27235304,8.531e-05,2]
[405900496,1771413031764,-2126.05098117,8.532e-05,2]
[405900499,1771413031775,-751.72228898,8.532e-05,2]
[405900502,1771413031787,-454.55387908,8.532e-05,2]
[405900505,1771413031798,-2815.94946393,8.532e-05,2]
[405900508,1771413031822,-4001.50583,8.532e-05,2]
[405900511,1771413031838,-451.0,8.532e-05,2]
[405900513,1771413031851,-897.6569597,8.532e-05,2]
[405900515,1771413031862,-1900.0,8.532e-05,2]
[405900517,1771413031874,-2355.45218517,8.532e-05,2]
[405900528,1771413037631,-280.76831322,8.532e-05,2]
[405900529,1771413037642,-500.0,8.532e-05,2]
[405900530,1771413037687,-797625.35977697,8.532e-05,2]
[405900531,1771413037741,-2685839.98032178,8.532e-05,2]
[405900532,1771413037752,-3534.30165175,8.631e-05,2]
[405900533,1771413037764,-185.59578519,8.631e-05,2]
[405900534,1771413037774,-307.98,8.676e-05,2]
[405900535,1771413037784,-200.0,8.778e-05,2]
[405900536,1771413037796,-1296.406,8.916e-05,2]
[405900537,1771413037807,-2500.0,8.916e-05,2]
[405900538,1771413037820,-1680.0,8.994e-05,2]
[405900539,1771413037830,-420.0,8.994e-05,2]
[405900540,1771413037839,-398.31078934,9.003e-05,2]
[405900541,1771413037849,-15187.66,9.003e-05,2]
[405900542,1771413037859,-15040.95,9.015e-05,2]
[405900543,1771413037868,-150.99,9.069e-05,2]
[405900544,1771413037879,-9999.99,9.069e-05,2]
[405900545,1771413037889,-1391.932,9.132e-05,2]
[405900546,1771413037899,-180.591,9.132e-05,2]
[405900548,1771413037909,-307.98,9.132e-05,2]
[405900550,1771413037918,-1000.0,9.247e-05,2]
[405900552,1771413037928,-255.0,9.383e-05,2]
[405900554,1771413037937,-21042.26,9.457e-05,2]
[405900556,1771413037946,-770.0,9.476e-05,2]
[405900558,1771413037955,-770.0,9.531e-05,2]
[405900560,1771413037965,-10000.0,9.55e-05,2]
[405900562,1771413037974,-770.0,9.586e-05,2]
[405900564,1771413037983,-333.11,9.588e-05,2]
[405900567,1771413037992,-307.98,9.589e-05,2]
[405900570,1771413038001,-250.0,9.614e-05,2]
[405900572,1771413038010,-770.0,9.64e-05,2]
[405900575,1771413038019,-152.0,9.65e-05,3]
[405900578,1771413038028,-770.0,9.695e-05,2]
[405900580,1771413038037,-770.0,9.75e-05,2]
[405900582,1771413038046,-1000.0,9.75e-05,2]
[405900584,1771413038055,-951.9112,9.75e-05,2]
[405900586,1771413038066,-32853.2111,9.75e-05,2]
[405900588,1771413038075,-4588.3903,9.75e-05,2]
[405900590,1771413038085,-770.0,9.805e-05,2]
[405900592,1771413038094,-770.0,9.86e-05,2]
[405900594,1771413038103,-2351.0,9.894e-05,2]
[405900596,1771413038112,-587.0,9.894e-05,2]
[405900598,1771413038122,-770.0,9.914e-05,2]
[405900600,1771413038131,-770.0,9.969e-05,2]
[405900602,1771413038140,-191.0,9.97e-05,2]
[405900604,1771413038150,-500.0,0.0001,2]
[405900606,1771413038159,-500.0,0.0001,2]
[405900608,1771413038168,-500.0,0.0001,2]
[405900610,1771413038177,-500.0,0.0001,2]
[405900612,1771413038186,-500.0,0.0001,2]
[405900614,1771413038195,-500.0,0.0001,2]
[405900616,1771413038204,-500.0,0.0001,2]
[405900618,1771413038213,-500.0,0.0001,2]
[405900620,1771413038223,-200.0,0.0001,2]
[405900622,1771413038232,-500.0,0.0001,2]
[405900624,1771413038241,-500.0,0.0001,2]
[405900626,1771413038251,-500.0,0.0001,2]
[405900628,1771413038260,-500.0,0.0001,2]
[405900630,1771413038270,-500.0,0.0001,2]
[405900632,1771413038279,-500.0,0.0001,2]
[405900634,1771413038288,-151.0,0.0001,2]
[405900636,1771413038297,-500.0,0.0001,2]
[405900638,1771413038306,-151.0,0.0001,2]
[405900640,1771413038316,-500.0,0.0001,2]
[405900642,1771413038325,-151.0,0.0001,2]
[405900643,1771413038335,-500.0,0.0001,2]
[405900644,1771413038344,-151.0,0.0001,2]
[405900645,1771413038354,-500.0,0.0001,2]
[405900646,1771413038363,-151.0,0.0001,2]
[405900647,1771413038372,-500.0,0.0001,2]
[405900648,1771413038382,-151.0,0.0001,2]
[405900649,1771413038392,-500.0,0.0001,2]
[405900650,1771413038401,-151.0,0.0001,2]
[405900651,1771413038410,-151.0,0.0001,2]
[405900652,1771413038419,-500.0,0.0001,2]
[405900653,1771413038429,-151.0,0.0001,2]
[405900654,1771413038438,-500.0,0.0001,2]
[405900655,1771413038448,-151.0,0.0001,2]
[405900656,1771413038457,-151.0,0.0001,2]
[405900657,1771413038467,-504.510834,0.0001,2]
[405900658,1771413038476,-151.0,0.0001,2]
[405900659,1771413038485,-151.0,0.0001,2]
[405900660,1771413038495,-151.0,0.0001,2]
[405900661,1771413038504,-151.0,0.0001,2]
[405900662,1771413038513,-151.0,0.0001,2]
[405900663,1771413038523,-151.0,0.0001,2]
[405900664,1771413038532,-151.0,0.0001,2]
[405900665,1771413038542,-151.0,0.0001,2]
[405900666,1771413038551,-151.0,0.0001,2]
[405900667,1771413038562,-151.0,0.0001,2]
[405900668,1771413038571,-151.0,0.0001,2]
[405900669,1771413038581,-151.0,0.0001,2]
[405900670,1771413038592,-151.0,0.0001,2]
[405900671,1771413038601,-151.0,0.0001,2]
[405900672,1771413038610,-151.0,0.0001,2]
[405900673,1771413038620,-151.0,0.0001,2]
[405900674,1771413038629,-151.0,0.0001,2]
[405900675,1771413038638,-151.0,0.0001,2]
[405900676,1771413038648,-151.0,0.0001,2]
[405900677,1771413038657,-151.0,0.0001,2]
[405900678,1771413038667,-151.0,0.0001,2]
[405900679,1771413038676,-151.0,0.0001,2]
[405900680,1771413038685,-151.0,0.0001,2]
[405900681,1771413038695,-151.0,0.0001,2]
[405900682,1771413038704,-151.0,0.0001,2]
[405900683,1771413038714,-151.0,0.0001,2]
[405900684,1771413038723,-151.0,0.0001,2]
[405900685,1771413038735,-151.0,0.0001,2]
[405900686,1771413038744,-151.0,0.0001,2]
[405900687,1771413038754,-151.0,0.0001,2]
[405900688,1771413038763,-151.0,0.0001,2]
[405900689,1771413038772,-151.0,0.0001,2]
[405900690,1771413038781,-151.0,0.0001,2]
[405900691,1771413038790,-151.0,0.0001,2]
[405900692,1771413038799,-151.0,0.0001,2]
[405900693,1771413038812,-151.0,0.0001,2]
[405900694,1771413038821,-151.0,0.0001,2]
[405900695,1771413038832,-151.0,0.0001,2]
[405900696,1771413038842,-151.0,0.0001,2]
[405900697,1771413038854,-151.0,0.0001,2]
[405900698,1771413038863,-175.27847489,0.0001,2]
[405900699,1771413038872,-1629.76441726,0.0001,2]
[405900700,1771413038882,-1629.76441726,0.0001,2]
[405900701,1771413038893,-770.0,0.00010024,2]
[405900702,1771413038903,-307.98,0.00010046,2]
[405900703,1771413038913,-770.0,0.00010079,2]
[405900704,1771413038922,-770.0,0.00010134,2]
[405900705,1771413038932,-770.0,0.00010188,2]
[405900706,1771413038942,-770.0,0.00010243,2]
[405900707,1771413038951,-1000.0,0.00010274,2]
[405900708,1771413038961,-770.0,0.00010298,2]
[405900709,1771413038970,-433.0,0.00010321,2]
[405900710,1771413038979,-770.0,0.00010353,2]
[405900711,1771413038989,-245.86778969,0.00010367,2]
[405900712,1771413038999,-500.0,0.00010367,2]
[405900713,1771413039008,-500.0,0.00010367,2]
[405900714,1771413039017,-500.0,0.00010367,2]
[405900715,1771413039027,-500.0,0.00010367,2]
[405900716,1771413039037,-307.32831336,0.00010367,2]
[405900717,1771413039046,-500.0,0.00010367,2]
[405900718,1771413039056,-500.0,0.00010367,2]
[405900719,1771413039069,-500.0,0.00010367,2]
[405900720,1771413039078,-500.92647612,0.00010367,2]
[405900721,1771413039088,-500.0,0.00010367,2]
[405900722,1771413039097,-167.33946284,0.00010367,2]
[405900723,1771413039107,-500.87268816,0.00010367,2]
[405900724,1771413039116,-157.29853366,0.00010367,2]
[405900725,1771413039126,-500.0,0.00010367,2]
[405900726,1771413039135,-306.32454784,0.00010367,2]
[405900727,1771413039144,-218.37761042,0.00010367,2]
[405900728,1771413039154,-500.0,0.00010388,2]
[405900729,1771413039163,-770.0,0.00010408,2]
[405900730,1771413039172,-770.0,0.00010462,2]
[405900731,1771413039186,-307.98,0.00010502,2]
[405900732,1771413039195,-770.0,0.00010517,2]
[405900733,1771413039205,-200.0,0.00010548,2]
[405900734,1771413039214,-770.0,0.00010572,2]
[405900735,1771413039224,-770.0,0.00010627,2]
[405900736,1771413039234,-770.0,0.00010681,2]
[405900737,1771413039244,-784.0,0.00010736,2]
[405900738,1771413039253,-823.0,0.00010883,2]
[405900739,1771413039263,-3292.0,0.00010883,2]
[405900740,1771413039273,-1000.0,0.00010915,2]
[405900741,1771413039282,-1000.0,0.00010915,2]
[405900742,1771413039292,-1000.0,0.00010915,2]
[405900743,1771413039302,-1000.0,0.00010915,2]
[405900744,1771413039312,-1000.0,0.00010915,2]
[405900745,1771413039321,-1000.0,0.00010915,2]
[405900747,1771413039330,-25949.63612918,0.00010942,2]
[405900749,1771413039340,-150.0,0.00010959,2]
[405900750,1771413039350,-166.66,0.00010959,2]
[405900751,1771413039360,-307.98,0.00010959,2]
[405900752,1771413039369,-166.66,0.00011068,2]
[405900753,1771413039379,-200.0,0.00011096,2]
[405900754,1771413039388,-68910.54911634,0.00011099,2]
[405900755,1771413039398,-68910.54911626,0.00011099,2]
[405900756,1771413039407,-68910.54911626,0.00011099,2]
[405900757,1771413039417,-68910.54911626,0.00011099,2]
[405900758,1771413039426,-68910.54911626,0.00011099,2]
[405900759,1771413039436,-166.66,0.00011178,2]
[405900760,1771413039445,-208776.0,0.000112,2]
[405900761,1771413039455,-166.66,0.00011288,2]
[405900762,1771413039465,-1508.0,0.00011297,2]
[405900763,1771413039474,-1508.0,0.00011297,2]
[405900764,1771413039484,-1508.0,0.00011297,2]
[405900765,1771413039494,-1000.0,0.00011301,2]
[405900766,1771413039504,-68910.54911626,0.00011326,2]
[405900767,1771413039513,-736.0,0.00011354,2]
[405900768,1771413039523,-166.66,0.00011397,2]
[405900769,1771413039533,-152.0,0.00011414,3]
[405900770,1771413039542,-307.98,0.00011416,2]
[405900771,1771413039551,-1500.0,0.00011463,2]
[405900772,1771413039562,-1500.0,0.00011463,2]
[405900773,1771413039571,-1509.709324,0.00011463,2]
[405900774,1771413039580,-1500.0,0.00011463,2]
[405900775,1771413039590,-1195.89534376,0.00011463,2]
[405900776,1771413039600,-166.66,0.00011507,2]
[405900778,1771413039609,-500.0,0.00011579,2]
[405900780,1771413039620,-5531.0,0.000116,3]
[405900781,1771413039629,-200.0,0.00011644,2]
[405900782,1771413039638,-307.98,0.00011872,2]
[405900783,1771413039648,-68910.54911626,0.00011894,2]
[405900784,1771413039659,-5531.0,0.000119,5]
[405900785,1771413039669,-268.0,0.00011912,2]
[405900786,1771413039680,-215.0,0.00011912,2]
[405900787,1771413039689,-172.182,0.00011912,2]
[405900788,1771413039699,-150.0,0.00011912,2]
[405900789,1771413039709,-150.0,0.00011912,2]
[405900790,1771413039718,-150.0,0.00011912,2]
[405900791,1771413039729,-150.0,0.00011912,2]
[405900792,1771413039738,-150.0,0.00011912,2]
[405900793,1771413039749,-150.0,0.00011912,2]
[405900794,1771413039758,-150.0,0.00011912,2]
[405900795,1771413039767,-150.0,0.00011912,2]
[405900796,1771413039778,-162.74,0.00011912,2]
[405900797,1771413039790,-638.503,0.00011912,2]
[405900798,1771413039801,-1164.0,0.00011912,2]
[405900799,1771413039815,-1351.534,0.00011912,2]
[405900800,1771413039825,-1275.0,0.00011912,2]
[405900801,1771413039834,-267.79,0.00011912,2]
[405900802,1771413039843,-1219.539,0.00011912,2]
[405900803,1771413039854,-5973.0,0.00011912,2]
[405900804,1771413039863,-2452.0,0.00011912,2]
[405900805,1771413039873,-1152.0,0.00011972,2]
[405900806,1771413039882,-4609.0,0.00011972,2]
[405900807,1771413039891,-60330.40230329,0.00011994,2]
[405900808,1771413039900,-2000.0,0.00012011,2]
[405900809,1771413039910,-1865.39566179,0.00012011,2]
[405900810,1771413039919,-1460.671579,0.00012011,2]
[405900811,1771413039928,-160.0,0.00012016,2]
[405900812,1771413039937,-173.62051493,0.00012016,2]
[405900813,1771413039946,-245.2765902,0.00012192,2]
[405900814,1771413039955,-250.0,0.00012277,2]
[405900815,1771413040252,-721.12765535,0.00012277,2]
[405900816,1771413040270,-174.61919141,0.00012277,2]
[405900817,1771413040280,-209.40437684,0.00012277,2]
[405900818,1771413040289,-250.0,0.00012277,2]
[405900819,1771413040298,-1000.0,0.00012277,2]
[405900820,1771413040307,-473.20037566,0.00012277,2]
[405900821,1771413040322,-693.3919763,0.00012277,2]
[405900822,1771413040332,-162.380719,0.00012277,2]
[405900823,1771413040342,-277.35679052,0.00012277,2]
[405900824,1771413040351,-1000.0,0.00012329,2]
[405900825,1771413040361,-307.98,0.00012329,2]
[405900826,1771413040372,-719.04747942,0.00012332,2]
[405900827,1771413040382,-745.65223616,0.00012387,2]
[405900828,1771413040392,-773.2413689,0.00012442,2]
[405900829,1771413040402,-68910.54911626,0.00012462,2]
[405900830,1771413040412,-1252.0,0.00012488,2]
[405900831,1771413040422,-801.85129955,0.00012497,2]
[405900832,1771413040431,-60330.40230329,0.00012498,2]
[405900833,1771413040440,-831.51979763,0.00012552,2]
[405900834,1771413040450,-2500.0,0.00012558,2]
[405900835,1771413040460,-862.28603014,0.00012607,2]
[405900836,1771413040470,-894.19061326,0.00012662,2]
[405900837,1771413040479,-927.27566595,0.00012717,2]
[405900838,1771413040489,-961.58486559,0.00012772,2]
[405900839,1771413040498,-181.08010149,0.00012825,2]
[405900840,1771413040509,-217.15233878,0.00012825,2]
[405900841,1771413040519,-287.61899177,0.00012825,2]
[405900842,1771413040528,-997.16350561,0.00012827,2]
[405900843,1771413040539,-271.5,0.00012877,2]
[405900844,1771413040548,-500.0,0.00013,2]
[405900845,1771413040558,-500.0,0.00013,2]
[405900846,1771413040572,-500.0,0.00013,2]
[405900847,1771413040581,-500.0,0.00013,2]
[405900848,1771413040590,-500.0,0.00013,2]
[405900849,1771413040600,-968.65142675,0.00013,2]
[405900850,1771413040610,-2000.0,0.00013,2]
[405900851,1771413040619,-2000.0,0.00013,2]
[405900852,1771413040629,-3800.0,0.00013,2]
[405900853,1771413040639,-1600.0,0.00013,2]
[405900854,1771413040648,-2000.0,0.00013,2]
[405900855,1771413040658,-3800.0,0.00013,2]
[405900856,1771413040668,-1600.0,0.00013,2]
[405900857,1771413040678,-2000.0,0.00013,2]
[405900858,1771413040687,-3800.0,0.00013,2]
[405900859,1771413040699,-1600.0,0.00013,2]
[405900860,1771413040709,-3800.0,0.00013,2]
[405900861,1771413040719,-500.0,0.00013,2]
[405900862,1771413040728,-2000.0,0.00013,2]